Cogmind - Beta 14 @@@ ROGUE MODE // 2025.01.02 @ 03:46:44 Player: Willow Result: Self-destructed Performance ------------- Evolutions (1) 500 Regions Visited (2) 400 Robots Destroyed (23) 115 Value Destroyed (406) 406 Prototype IDs (2) 40 Alien Tech Used (0) 0 Bonus (0) 0 TOTAL SCORE: 1461 Bonus ------- None Cogmind --------- Core Integrity 334/400 Matter 300/300 Energy 125/125 System Corruption 0% Temperature Cool (0) Movement Treading (170) Location -9/Materials Parts ------- > --- POWER (1) -------- Light Ion Engine > --- PROPULSION (4) --- Armored Treads Armored Treads Armored Treads Armored Treads > --- UTILITY (2) ------ Medium Storage Unit > --- WEAPON (2) ------- Improved Medium Laser Light Assault Rifle > --- INVENTORY (10) --- Cooled Ion Engine Flight Unit Flight Unit Flight Unit Flight Unit High-capacity Battery (250) Large Matter Pod (150) Signal Interpreter Peak State ------------ > --- POWER ------------ Light Ion Engine > --- PROPULSION ------- Armored Treads Armored Treads Armored Treads Armored Treads > --- UTILITY ---------- Medium Storage Unit Propulsion Shielding > --- WEAPON ----------- Improved Medium Laser Assault Rifle > --- INVENTORY -------- Cooled Ion Engine Flight Unit Flight Unit Flight Unit Flight Unit High-capacity Battery Large Matter Pod Signal Interpreter Light Assault Rifle [Rating: 20] Favorites ----------- Power Ion Engine Engine Ion Engine Propulsion Wheel Treads Armored Treads Wheel Wheel Flight Unit Flight Unit Utility Medium Storage Unit Device Seismic Detector Storage Medium Storage Unit Protection Core Shielding Weapon Assault Rifle Energy Gun Improved Medium Laser Ballistic Gun Assault Rifle Build | -11 -10 -9 ------- Run | Yrd Mat Mat Slots Evolved 2 | . . 2 Power . | . . . Propulsion 2 | . . 2 Utility . | . . . Weapon . | . . . Parts Attached 28 | 6 5 17 Power 5 | 1 1 3 Engine 5 | 1 1 3 Core . | . . . Reactor . | . . . Propulsion 11 | 2 1 8 Treads 4 | . . 4 Leg . | . . . Wheel 3 | 2 1 . Hover . | . . . Flight 4 | . . 4 Utility 5 | 2 2 1 Device 1 | 1 . . Storage 2 | 1 1 . Processor . | . . . Hackware . | . . . Protection 2 | . 1 1 Artifact . | . . . Weapon 7 | 1 1 5 Energy Gun 2 | . . 2 Energy Cannon . | . . . Ballistic Gun 5 | 1 1 3 Ballistic Cannon . | . . . Launcher . | . . . Special Weapon . | . . . Impact Weapon . | . . . Slashing Weapon . | . . . Piercing Weapon . | . . . Special Melee Weapon . | . . . Unidentified Prototypes 2 | . . 2 Parts Lost 2 | . . 2 Power . | . . . Propulsion . | . . . Utility 1 | . . 1 Weapon 1 | . . 1 Highest Loss Streak 2 | . . 2 To Critical Strikes . | . . . Average Slot Usage (%) 95 | . 95 97 Engine 13 | . 14 11 Treads 9 | . . 39 Wheel 21 | . 28 . Flight 1 | . . 4 Device 3 | . 4 . Storage 13 | . 14 11 Protection 9 | . 9 9 Ballistic Gun 22 | . 23 19 Peak Build Rating 20 | 6 8 20 Average Rating 9 | 4 7 16 On Entrance 4 | . 6 8 Naked Turns . | . . . Heaviest Build 22 | 13 19 22 Greatest Support 80 | 20 20 80 Greatest Overweight (x) 1 | 1 . . Average Overweight (x) . | . . . Largest Inventory Capacity 10 | 8 10 10 Average Capacity 9 | 7 9 10 Most Carried 10 | 4 10 10 Average Carried 8 | 2 9 8 Final Capacity 10 | 8 10 10 Final Carried 10 | 4 10 8 Class Distribution -------------------- 100% | Mutant Dominant Class ---------------- Mutant | -10/Materials Mutant | -9/Materials Resources | -11 -10 -9 ----------- Run | Yrd Mat Mat Matter Collected 838 | 302 226 310 Remotely . | . . . Salvage Created 865 | 136 245 484 Parts 59 | 12 18 29 Haulers Intercepted 1 | . 1 . Recyclers Shooed 3 | . 1 2 Parts Field Recycled . | . . . Retrieved Matter . | . . . Parts Self-Destructed . | . . . Prevented . | . . . Kills | -11 -10 -9 ------- Run | Yrd Mat Mat Combat Hostiles Destroyed 14 | . 6 8 Guns 14 | . 6 8 Classes Destroyed 8 | 2 3 3 Tunneler 3 | 3 . . Hauler 1 | . 1 . Recycler 4 | 1 1 2 Watcher 1 | . 1 . Swarmer 7 | . 6 1 Grunt 4 | . . 4 Duelist 1 | . . 1 Sentry 2 | . . 2 Best Kill Streak 4 | 4 4 4 Combat Bots Only 3 | . 3 3 Max Kills in Single Turn 1 | 1 1 1 Gunslinging . | . . . Exploded . | . . . Melee . | . . . Uniques/NPCs Destroyed . | . . . Combat | -11 -10 -9 -------- Run | Yrd Mat Mat Hostile Shots Fired 94 | . 39 55 Missed 27 | . 11 16 Damage Taken 814 | . 253 561 Core 122 | . 56 66 Absorbed by Shields . | . . . Redirected to Shielding 58 | . 7 51 Core Remaining (%) 88 | 100 77 . Volleys Fired 72 | 14 28 30 Largest 2 | 1 2 2 Hottest 76 | 20 40 76 Shots Fired 123 | 14 50 59 Gun 123 | 14 50 59 Cannon . | . . . Launcher . | . . . Special . | . . . Kinetic 114 | 14 50 50 Thermal 9 | . . 9 Explosive . | . . . Electromagnetic . | . . . Robot Hit Streak 11 | 8 4 11 Robot Miss Streak 3 | 1 3 2 Penetration Max . | . . . Secondary Targets 2 | . 1 1 Max Gunslinging Chain 1 | . 1 1 Shots Hit Robots 80 | 11 24 45 Core Hits 39 | 5 15 19 Critical Kills 3 | . 2 1 Critical Parts Destroyed . | . . . Critical Strikes 3 | . 2 1 Destroy 3 | . 2 1 Melee Attacks . | . . . Impact . | . . . Slashing . | . . . Piercing . | . . . Sneak Attacks . | . . . Combat Hostiles . | . . . Follow-up Attacks . | . . . Damage Inflicted 909 | 142 285 482 Guns 872 | 142 248 482 Cannons . | . . . Explosions . | . . . Melee . | . . . Ramming 37 | . 37 . Kinetic 768 | 142 248 378 Thermal 104 | . . 104 Explosive . | . . . Electromagnetic . | . . . Impact . | . . . Slashing . | . . . Piercing . | . . . Highest Corruption 1 | . 1 . Average Corruption 1 | . 1 . Corruption Purged . | . . . Corruption Blocked . | . . . Effects 1 | . 1 . Data Loss (major) 1 | . 1 . Overload Shots . | . . . Overflow Damage . | . . . Projectiles . | . . . Explosions . | . . . Melee . | . . . Knockbacks . | . . . Impact . | . . . Kinetic . | . . . Secondary . | . . . Self-Inflicted Damage 17 | . 17 . Shots . | . . . Rammed 4 | . 4 . Targets Rammed 4 | . 4 . Kicked . | . . . Crushed . | . . . Highest Temperature 104 | . . 104 Average Temperature 38 | . . 38 Received Heat Transfer 165 | . . 165 Siege Activations . | . . . Robots Corrupted . | . . . Combat Hostiles . | . . . Parts Fried . | . . . Impact Corruptions . | . . . Robots Melted . | . . . Combat Hostiles . | . . . Parts Melted . | . . . Heat Transferred 222 | . . 222 Parts Sabotaged . | . . . Parts Stolen . | . . . Parts Stripped . | . . . Power Chain Reactions . | . . . Alert | -11 -10 -9 ------- Run | Yrd Mat Mat Peak Influence 325 | 20 180 325 Initial 15 | . 13 15 Average 84 | 6 62 168 Maximum Alert Level 1 | . . 1 Low Security (%) 89 | 100 100 56 Level 1 10 | . . 43 Level 2 . | . . . Level 3 . | . . . Level 4 . | . . . Level 5 . | . . . High Security . | . . . Max Security . | . . . Squads Dispatched 2 | . 1 1 Investigation . | . . . Extermination . | . . . Reinforcement 2 | . 1 1 Assault . | . . . Garrison . | . . . Intercept . | . . . Searches Triggered . | . . . Construction Impeded . | . . . Haulers Reinforced . | . . . Active Scanning Responses . | . . . Cargo Convoy Interrupts . | . . . Stealth | -11 -10 -9 --------- Run | Yrd Mat Mat Distress Signals 3 | . 2 1 Communications Jammed . | . . . Distress Signals . | . . . Times Spotted 39 | . 21 18 Peak Tracking Total 6 | . 4 6 Tactical Retreats 7 | . 4 3 Traps | -11 -10 -9 ------- Run | Yrd Mat Mat Traps Triggered . | . . . Indirectly . | . . . Trap Hack Attempts . | . . . Triggered . | . . . Disarmed . | . . . Reprogrammed . | . . . Reused . | . . . Traps Extracted . | . . . Installed . | . . . Triggered . | . . . Machines | -11 -10 -9 ---------- Run | Yrd Mat Mat Machines Disabled . | . . . Max in Single Turn . | . . . Machines Repaired . | . . . Machines Dismantled . | . . . Machines Sabotaged . | . . . Overloaded Fab Kills . | . . . Hacking | -11 -10 -9 --------- Run | Yrd Mat Mat Machines Accessed 8 | . 8 . Terminals 7 | . 7 . Fabricators . | . . . Repair Stations . | . . . Recycling Units 1 | . 1 . Scanalyzers . | . . . Garrison Access . | . . . Total Hacks 22 | . 22 . Successful 13 | . 13 . Failed 9 | . 9 . Catastrophic 1 | . 1 . Database Lockouts . | . . . Manual 16 | . 16 . Terminals 19 | . 19 . Fabricators . | . . . Repair Stations . | . . . Recycling Units 3 | . 3 . Scanalyzers . | . . . Garrison Access . | . . . Terminal Hacks 6 | . 6 . Record 1 | . 1 . Part Schematic 1 | . 1 . Robot Analysis 1 | . 1 . Alert Level 2 | . 2 . Locate Traps 1 | . 1 . Fabricator Hacks . | . . . Repair Station Hacks . | . . . Recycling Unit Hacks . | . . . Scanalyzer . | . . . Garrison Access Hacks . | . . . Unauthorized Hacks 7 | . 7 . Terminals 5 | . 5 . Botnet 5 | . 5 . Fabricators . | . . . Repair Stations . | . . . Recycling Units 2 | . 2 . Recyclers 1 | . 1 . Mask 1 | . 1 . Scanalyzers . | . . . Garrison Access . | . . . Data Cores Recovered . | . . . Used . | . . . Hacking Detections 8 | . 8 . Full Trace Events . | . . . Feedback Events . | . . . Feedback Blocked . | . . . Robot Schematics Acquired . | . . . Robots Built . | . . . Authchips . | . . . Time . | . . . Total Robot Build Rating . | . . . Part Schematics Acquired 1 | . 1 . Parts Built . | . . . Authchips . | . . . Time . | . . . Total Part Build Rating . | . . . Parts Repaired . | . . . Time . | . . . Parts Recycled . | . . . Recycled Matter . | . . . Retrieved Matter . | . . . Retrieved Components . | . . . Parts Scanalyzed . | . . . Part Schematics Acquired . | . . . Parts Damaged . | . . . Bothacking | -11 -10 -9 ------------ Run | Yrd Mat Mat Used RIF Installer . | . . . Robots Hacked . | . . . Non-combat . | . . . Combat . | . . . Robot Hacks Applied . | . . . Relay Couplers Released . | . . . Fabnet Peak Effective % . | . . . Robots Rewired . | . . . Allies Hacked . | . . . Hacks Repelled . | . . . Allies | -11 -10 -9 -------- Run | Yrd Mat Mat Total Allies . | . . . Largest Group . | . . . Highest-Rated Group . | . . . Highest-Rated Ally . | . . . Total Orders . | . . . Ally Attacks . | . . . Total Damage . | . . . Kills . | . . . Allies Corrupted . | . . . Allies Melted . | . . . Intel | -11 -10 -9 ------- Run | Yrd Mat Mat Robot Analysis Total 1 | . 1 . Derelict Logs Recovered . | . . . Drone Launches . | . . . Drone Recoveries . | . . . Exploration | -11 -10 -9 ------------- Run | Yrd Mat Mat Turns Passed 1206 | 80 839 287 Spaces Moved 738 | 46 569 123 Core 1 | 1 . . Treads 81 | . . 81 Legs . | . . . Wheels 614 | 45 569 . Hover . | . . . Flight 42 | . . 42 Fastest Speed 31 | 50 80 31 Average Speed 87 | 84 80 122 Slowest Speed 170 | 95 80 170 Overloaded Moves . | . . . Propulsion Burnouts . | . . . Robots Hopped . | . . . Cave-ins Triggered . | . . . Exploration Rate (%) 36 | 4 87 18 Regions Visited 2 Branch Regions . Pre-discovered Areas . | . . . Known Exits Taken . | . . . Unknown Exits Taken 2 | 1 1 . Scrap Searched . | . . . Spaces Dug . | . . . Terrain Destroyed . | . . . Melee . | . . . Projectile . | . . . AOE . | . . . Terrain Rammed . | . . . Walls Destroyed . | . . . Machines Disabled . | . . . Actions | -11 -10 -9 --------- Run | Yrd Mat Mat Total 1182 | 69 909 204 Wait 299 | . 282 17 Move 736 | 45 568 123 Hop . | . . . Pick Up 25 | 4 14 7 Fast Attach 8 | 6 . 2 Attach 6 | . 2 4 Detach 2 | . . 2 Swap 14 | . 3 11 Drop 16 | . 8 8 Fire 72 | 14 28 30 Melee . | . . . Ram 4 | . 4 . Kick . | . . . Crush . | . . . Escape Stasis . | . . . Rewire . | . . . Trap . | . . . Miscellaneous . | . . . Route ------- -11/Scrapyard -10/Materials (discovered 4 exits: [*Mat x3] / [*Min]) -9/Materials History --------- Turn | Location | Event 24 | -11/Scrapyard | Discovered new exit (range 16) 81 | -11/Scrapyard | Entered Materials 215 | -10/Materials | Discovered new exit (range 15) 303 | -10/Materials | Discovered new exit (range 13) 317 | -10/Materials | Build established: Mutant 338 | -10/Materials | Discovered new exit (range 12) 891 | -10/Materials | Discovered new exit (range 16) 920 | -10/Materials | Entered another Materials area 920 | -9/Materials | Evolved 2 slots: Propulsion x2 1207 | -9/Materials | Self-destructed Last Messages --------------- 01175_ L-31 Rogue destroyed. 01176_ Acquired 48 matter. 01178_ K-01 Serf collects debris. 01178_ R-06 Scavenger collects Core Shielding. 01181_ R-06 Scavenger collects Hvy. Assault Rifle. 01182_ G-34 Mercenary destroyed. 01182_ K-01 Serf collects debris. 01182_ R-06 Scavenger collects Lgt. Treads. 01182_ R-06 Scavenger collects Ion Engine. 01184_ R-06 Scavenger collects Sml. Laser. 01184_ Acquired 10 matter. 01185_ K-01 Serf collects debris. 01185_ R-06 Scavenger collects Katana. 01186_ R-06 Scavenger collects Aluminum Leg. 01188_ K-01 Serf collects debris. 01207_ C-30 ARC bursts open, deploying its payload. 01207_ L-31 Rogue unfolds itself. 01207_ G-34 Mercenary unfolds itself. Map ----- +----------------------------------------------------+ | ????#!! ### ###??????????????????# ??????????????? | | ????#####?# #????????????????????# ??????????????? | | ??????????# ###???##############?# #?????????????? | | ??????????# ##### #?# #?????????????? | | ??????????# + #?# #??????###????? | | ??????????# ##### != #?# #?????? ??? | | ??????????# #???# =!*!!= #?# #?????""" """?? | | ??????????# #???# ! %*!== #?# #####?""" """ ? | | ?????????# ???#######+######## # """ """ # | | ?????????# ###?????#= # # | | ?????????/ # ????#= + [[ # | | ???????? # # ????# [ # ! [[ # | | ??????? # # ???## ######## % # [[ # | | ?????? ?# # """??###+######### ############ | | ????? ?# # """ ?# # # | | ???? ??# # """ ?# %/ + | | ????? ???# # # # # | | ?????????# # """ # # # | | ?????????# + """ +% # #? [ | | ?????????? # """ # # #?########## | | ???????????????# #% | # #??????????? | | ???????????????######?#+########### #??????????? | | ????????????????????### ###???????# #??????????? | | ????????# ##### #??????? #?????????? | | ????????# k r ### ????????? | | ????????+ Y @ T ??????????? | | ????????# ### l ????????? | | ????????# ##### #???? ## gg #?????????? | | ????????# ?????###g###??????###+###?????????? | | ????????#####?????????# #????????????????????????? | | ??????????????????????# #????????????????????????? | | ??????????????????????# #????????????????????????? | | ??????????????????????#/#????????????????????????? | | ?????????????????????? ????????????????????????? | | ?????????????????????? ????????????????????????? | | ?????????????????????? ????????????????????????? | | ?????????????????????? ????????????????????????? | | ?????????????????????? ????????????????????????? | | ?????????????????????# ????????????????????????? | | ?????????????????????# ????????????????????????? | | ?????????????????????????????????????????????????? | | ?????????????????????????????????????????????????? | | ?????????????????????????????????????????????????? | | ?????????????????????????????????????????????????? | | ?????????????????????????????????????????????????? | | ?????????????????????????????????????????????????? | | ?????????????????????????????????????????????????? | | ?????????????????????????????????????????????????? | | ?????????????????????????????????????????????????? | | ?????????????????????????????????????????????????? | +----------------------------------------------------+ Best States ------------- Heat Dissipation 28 Energy Generation 10 Energy Capacity 250 Matter Stores 300 Matter Capacity 300 Sight Range 16 Terrain Scan Density 10 Core Shielding 20 Propulsion Shielding 33 Evasion (%) 63 Recoil Reduction 4 Item Schematics ----------------- Flight Unit | -10/Materials | Hacked Robot Schematics ------------------ None Fabricated ------------ Nothing Alien Tech Used ----------------- None Achievements -------------- None Challenges ------------ None Game ------ Seed DecoderInsulatedReactor Manual? 0 Play Time 00:16:20 Cumulative 49.2 hours Start 2025.01.01 @ 19:27:30 End 2025.01.02 @ 03:46:44 Sessions 2 Manual Loads 0 Difficulty Rogue Special Mode None Game No. 38 Rogue 23 Adventurer 15 Explorer 0 Win Type - Total 0 Types 0/0/0/0/0/0/0/0/0 Lore% 31 Gallery% 33 Achievement% 32 Wizard Run 0 Options --------- Layout 1 ASCII 0 Keyboard 0 Movement Mouse Keybinds 0 Fullscreen 1 Font 24/Smallcaps Map View 50x35 Zoom Use 0% Tactical HUD 1 Map Filters NONE Filters NONE Steam 1 RUN: ec078fb7-3a13-4f03-a354-45358eadf00d